fUSD/lending_fUSD_20240624
["ID","MTS","AMOUNT","RATE_DAILY","PERIOD"]
[330261279,1719214280657,-293.62,0.0002,4]
[330261280,1719214280668,-500.0,0.0002,4]
[330261281,1719214280677,-500.0,0.0002,4]
[330261282,1719214280687,-500.0,0.0002,4]
[330261283,1719214280696,-682.1,0.0002,4]
[330261284,1719214280707,-500.0,0.0002,4]
[330261285,1719214280716,-500.0,0.0002,4]
[330261286,1719214280726,-500.0,0.0002,4]
[330261287,1719214280736,-500.0,0.0002,4]
[330261288,1719214280745,-500.0,0.0002,4]
[330261289,1719214280755,-500.0,0.0002,4]
[330261290,1719214280764,-500.0,0.0002,4]
[330261291,1719214280774,-500.0,0.0002,4]
[330261292,1719214280784,-937.44,0.0002,4]
[330261293,1719214280794,-500.0,0.0002,4]
[330261294,1719214280804,-500.0,0.0002,4]
[330261295,1719214280814,-500.0,0.0002,4]
[330261296,1719214280827,-500.0,0.0002,4]
[330261297,1719214280838,-500.0,0.0002,4]
[330261298,1719214280848,-151.0,0.0002,2]
[330261299,1719214280857,-645.12,0.0002,4]
[330261300,1719214280867,-151.0,0.0002,2]
[330261301,1719214280876,-500.0,0.0002,4]
[330261302,1719214280886,-768.8,0.0002,4]
[330261303,1719214280895,-500.0,0.0002,4]
[330261304,1719214280904,-206.42,0.0002,4]
[330261305,1719214280913,-500.0,0.0002,4]
[330261306,1719214280922,-2094.36,0.0002,4]
[330261307,1719214280931,-577.82,0.0002,4]
[330261308,1719214280941,-500.0,0.0002,4]
[330261309,1719214280950,-500.0,0.0002,4]
[330261310,1719214280960,-500.0,0.0002,4]
[330261311,1719214280970,-500.0,0.0002,4]
[330261312,1719214280979,-6356.44,0.0002,4]
[330261313,1719214280989,-500.0,0.0002,4]
[330261314,1719214280999,-500.0,0.0002,4]
[330261315,1719214281009,-500.0,0.0002,4]
[330261316,1719214281019,-500.0,0.0002,4]
[330261317,1719214281029,-4647.89,0.0002,4]
[330261318,1719214281042,-3141.04,0.0002,4]
[330261319,1719214281051,-545.8370588,0.0002,4]
[330261320,1719214281064,-500.0,0.0002,4]
[330261321,1719214281073,-6185.28,0.0002,4]
[330261322,1719214281083,-3586.73,0.0002,4]
[330261323,1719214281092,-683.5,0.0002,4]
[330261324,1719214281102,-2892.33,0.0002,4]
[330261325,1719214281111,-2282.5,0.0002,4]
[330261326,1719214281121,-151.0,0.0002,2]
[330261327,1719214281131,-500.0,0.0002,4]
[330261328,1719214281140,-500.0,0.0002,4]
[330261329,1719214281150,-320.68,0.0002,4]
[330261330,1719214281159,-505.61628599,0.0002,4]
[330261331,1719214281169,-650.76,0.0002,4]
[330261332,1719214281179,-504.21688272,0.0002,4]
[330261333,1719214281189,-51483.53,0.0002,4]
[330261334,1719214281199,-500.0,0.0002,4]
[330261335,1719214281208,-447.67,0.0002,4]
[330261336,1719214281218,-500.0,0.0002,4]
[330261337,1719214281228,-618.97298337,0.0002,4]
[330261338,1719214281237,-34800.51,0.0002,4]
[330261339,1719214281247,-500.0,0.0002,4]
[330261340,1719214281257,-6749.81,0.0002,4]
[330261341,1719214281267,-4567.01,0.0002,4]
[330261342,1719214281277,-507.38669696,0.0002,4]
[330261343,1719214281288,-592.01949335,0.0002,4]
[330261344,1719214281298,-5105.2,0.0002,4]
[330261345,1719214281307,-500.0,0.0002,4]
[330261346,1719214281317,-288.32,0.0002,4]
[330261347,1719214281327,-644.74,0.0002,4]
[330261348,1719214281336,-500.0,0.0002,4]
[330261349,1719214281346,-510.85,0.0002,4]
[330261350,1719214281356,-177.46533065,0.0002,2]
[330261351,1719214281365,-1219.98,0.0002,4]
[330261352,1719214281374,-500.0,0.0002,4]
[330261353,1719214281384,-500.0,0.0002,4]
[330261354,1719214281394,-1000.0,0.0002,4]
[330261355,1719214281403,-907.22,0.0002,4]
[330261356,1719214281412,-2994.74,0.0002,4]
[330261357,1719214281422,-500.0,0.0002,4]
[330261358,1719214281431,-500.0,0.0002,4]
[330261359,1719214281440,-500.0,0.0002,4]
[330261360,1719214281450,-500.0,0.0002,4]
[330261361,1719214281460,-3411.07,0.0002,4]
[330261362,1719214281470,-502.15175,0.0002,4]
[330261363,1719214281480,-500.0,0.0002,4]
[330261364,1719214281490,-456.97648559,0.0002,4]
[330261365,1719214281500,-500.0,0.0002,4]
[330261366,1719214281510,-1945.6,0.0002,4]
[330261367,1719214281520,-500.0,0.0002,4]
[330261368,1719214281533,-500.0,0.0002,4]
[330261369,1719214281543,-4149.12,0.0002,4]
[330261370,1719214281553,-500.0,0.0002,4]
[330261371,1719214281563,-1616.06,0.0002,4]
[330261372,1719214281573,-571.69,0.0002,4]
[330261373,1719214281583,-887.92,0.0002,4]
[330261374,1719214281593,-298.98689344,0.0002,4]
[330261375,1719214281604,-500.0,0.0002,4]
[330261376,1719214281618,-229.264516,0.0002,2]
[330261377,1719214281628,-4933.56,0.0002,4]
[330261378,1719214281638,-2530.75,0.0002,4]
[330261379,1719214281650,-2643.82,0.0002,4]
[330261380,1719214281660,-229.264516,0.0002,2]
[330261381,1719214281670,-500.0,0.0002,4]
[330261382,1719214281680,-500.0,0.0002,4]
[330261383,1719214281690,-547.62,0.0002,4]
[330261384,1719214281703,-500.0,0.0002,4]
[330261385,1719214281929,-700.46,0.0002,4]
[330261386,1719214281939,-500.0,0.0002,4]
[330261387,1719214281949,-2119.33,0.0002,4]
[330261388,1719214281958,-6552.44,0.0002,4]
[330261389,1719214281967,-807.64,0.0002,4]
[330261390,1719214281977,-1255.88,0.0002,4]
[330261391,1719214281987,-537.62,0.0002,4]
[330261392,1719214281996,-500.0,0.0002,4]
[330261393,1719214282005,-5199.55,0.0002,4]
[330261394,1719214282015,-500.0,0.0002,4]
[330261395,1719214282025,-500.0,0.0002,4]
[330261396,1719214282037,-5313.84,0.0002,4]
[330261397,1719214282047,-10226.28,0.0002,4]
[330261398,1719214282056,-500.0,0.0002,4]
[330261399,1719214282065,-9675.59,0.0002,4]
[330261400,1719214282075,-500.0,0.0002,4]
[330261401,1719214282086,-1578.26,0.0002,4]
[330261402,1719214282095,-500.0,0.0002,4]
[330261403,1719214282106,-2304.39,0.0002,4]
[330261404,1719214282115,-1515.67,0.0002,4]
[330261405,1719214282125,-500.0,0.0002,4]
[330261406,1719214282135,-500.0,0.0002,4]
[330261407,1719214282144,-500.0,0.0002,4]
[330261408,1719214282154,-860.22,0.0002,4]
[330261409,1719214282164,-1413.93,0.0002,4]
[330261410,1719214282174,-2577.54,0.0002,4]
[330261411,1719214282183,-500.0,0.0002,4]
[330261412,1719214282194,-500.0,0.0002,4]
[330261413,1719214282203,-2480.87,0.0002,4]
[330261414,1719214282213,-3485.47,0.0002,4]
[330261415,1719214282223,-525.5,0.0002,4]
[330261416,1719214282232,-1675.26,0.0002,4]
[330261417,1719214282241,-500.0,0.0002,4]
[330261418,1719214282251,-6936.84,0.0002,4]
[330261419,1719214282261,-300.15374837,0.0002,2]
[330261420,1719214282271,-1833.59,0.0002,4]
[330261421,1719214282282,-500.0,0.0002,4]
[330261422,1719214282292,-500.0,0.0002,4]
[330261423,1719214282302,-978.19,0.0002,4]
[330261424,1719214282312,-906.01,0.0002,4]
[330261425,1719214282322,-500.0,0.0002,4]
[330261426,1719214282332,-500.0,0.0002,4]
[330261427,1719214282342,-1148.69,0.0002,4]
[330261428,1719214282352,-1282.27,0.0002,4]
[330261429,1719214282362,-5805.71,0.0002,4]
[330261430,1719214282371,-200.57963609,0.0002,2]
[330261431,1719214282382,-3390.41,0.0002,4]
[330261432,1719214282392,-500.0,0.0002,4]
[330261433,1719214282402,-500.0,0.0002,4]
[330261434,1719214282411,-500.0,0.0002,4]
[330261435,1719214282420,-4960.34,0.0002,4]
[330261436,1719214282430,-3724.94,0.0002,4]
[330261437,1719214282440,-631.73,0.0002,4]
[330261438,1719214282450,-2618.38,0.0002,4]
[330261439,1719214282460,-500.0,0.0002,4]
[330261440,1719214282470,-3549.79,0.0002,4]
[330261441,1719214282480,-6686.69,0.0002,4]
[330261442,1719214282490,-500.0,0.0002,4]
[330261443,1719214282499,-683.84,0.0002,4]
[330261444,1719214282508,-3505.82,0.0002,4]
[330261445,1719214282518,-160.29,0.0002,4]
[330261446,1719214282529,-169.55934429,0.0002,2]
[330261447,1719214282540,-4601.22,0.0002,4]
[330261448,1719214282550,-3007.89,0.0002,4]
[330261449,1719214282560,-500.0,0.0002,4]
[330261450,1719214282571,-500.0,0.0002,4]
[330261451,1719214282580,-5517.01,0.0002,4]
[330261452,1719214282590,-646.70968264,0.0002,4]
[330261453,1719214282599,-3237.39,0.0002,4]
[330261454,1719214282611,-500.0,0.0002,4]
[330261455,1719214282620,-151.0,0.0002,2]
[330261456,1719214282633,-5108.38,0.0002,4]
[330261457,1719214282643,-2162.86,0.0002,4]
[330261458,1719214282653,-776.23,0.0002,4]
[330261459,1719214282663,-500.0,0.0002,4]
[330261460,1719214282672,-151.0,0.0002,2]
[330261461,1719214282682,-1479.77,0.0002,4]
[330261462,1719214282693,-150.9801833,0.0002,2]
[330261463,1719214282703,-500.0,0.0002,4]
[330261464,1719214282714,-500.0,0.0002,4]
[330261465,1719214282724,-822.04,0.0002,4]
[330261466,1719214282733,-500.0,0.0002,4]
[330261467,1719214282743,-3213.19,0.0002,4]
[330261468,1719214282752,-500.0,0.0002,4]
[330261469,1719214282762,-442.7,0.0002,4]
[330261470,1719214282771,-500.0,0.0002,4]
[330261471,1719214282781,-1437.16,0.0002,4]
[330261472,1719214282790,-500.0,0.0002,4]
[330261473,1719214282800,-500.0,0.0002,4]
[330261474,1719214282809,-500.0,0.0002,4]
[330261475,1719214282818,-8580.64,0.0002,4]
[330261476,1719214282827,-4077.0,0.0002,4]
[330261477,1719214282838,-500.0,0.0002,4]
[330261478,1719214282847,-247.29165206,0.0002,4]
[330261479,1719214282857,-3505.75051555,0.0002,2]
[330261480,1719214282867,-522.29,0.0002,4]
[330261481,1719214282876,-773.12,0.0002,4]
[330261482,1719214282886,-500.0,0.0002,4]
[330261483,1719214282895,-1347.66,0.0002,4]
[330261484,1719214282905,-500.0,0.0002,4]
[330261485,1719214282915,-3845.4,0.0002,4]
[330261486,1719214282924,-151.0,0.0002,2]
[330261487,1719214282934,-151.0,0.0002,2]
[330261488,1719214282945,-599.26,0.0002,4]
[330261489,1719214282955,-151.0,0.0002,2]
[330261490,1719214282966,-520.44,0.0002,4]
[330261491,1719214282976,-215.285216,0.0002,2]
[330261492,1719214282986,-215.285216,0.0002,2]
[330261493,1719214282995,-151.0,0.0002,2]
[330261494,1719214283006,-151.0,0.0002,2]
[330261495,1719214283015,-653.28,0.0002,4]
[330261496,1719214283025,-500.0,0.0002,4]
[330261497,1719214283038,-215.285216,0.0002,2]
[330261498,1719214283048,-215.285216,0.0002,2]
[330261499,1719214283058,-601.18,0.0002,4]
[330261500,1719214283068,-4423.02,0.0002,4]
[330261501,1719214283078,-500.0,0.0002,4]
[330261502,1719214283088,-650.66235661,0.0002,7]
[330261503,1719214283098,-1302.14,0.0002,4]
[330261504,1719214283108,-1510.55,0.0002,4]
[330261505,1719214283117,-500.0,0.0002,4]
[330261506,1719214283127,-500.0,0.0002,4]
[330261507,1719214283136,-4691.32,0.0002,4]
[330261508,1719214283146,-1862.57,0.0002,4]
[330261509,1719214283157,-569.23,0.0002,4]
[330261510,1719214283167,-500.0,0.0002,4]
[330261511,1719214283177,-500.0,0.0002,4]
[330261512,1719214283187,-500.0,0.0002,4]
[330261513,1719214283197,-500.0,0.0002,4]
[330261514,1719214283207,-500.0,0.0002,4]
[330261515,1719214283217,-3581.0,0.0002,4]
[330261516,1719214283227,-4540.36,0.0002,4]
[330261517,1719214283236,-500.0,0.0002,4]
[330261518,1719214283246,-3105.44,0.0002,4]
[330261519,1719214283256,-647.91,0.0002,4]
[330261520,1719214283266,-775.75,0.0002,4]
[330261521,1719214283276,-500.0,0.0002,4]
[330261522,1719214283289,-552.17,0.0002,4]
[330261523,1719214283298,-551.02,0.0002,4]
[330261524,1719214283307,-500.0,0.0002,4]
[330261525,1719214283316,-4542.28,0.0002,4]
[330261526,1719214283325,-206.73,0.0002,4]
[330261527,1719214283334,-500.0,0.0002,4]
[330261528,1719214283343,-1450.78,0.0002,4]
[330261529,1719214283352,-500.0,0.0002,4]
[330261530,1719214283362,-2168.61,0.0002,4]
[330261531,1719214283371,-500.0,0.0002,4]
[330261532,1719214283381,-500.0,0.0002,4]
[330261533,1719214283391,-500.0,0.0002,4]
[330261534,1719214283401,-184.908793,0.0002,2]
[330261535,1719214283411,-2528.62,0.0002,4]
[330261536,1719214283426,-220.18,0.0002,4]
[330261537,1719214283436,-500.0,0.0002,4]
[330261538,1719214283446,-500.0,0.0002,4]
[330261539,1719214283456,-500.0,0.0002,2]
[330261540,1719214283468,-3511.4,0.0002,4]
[330261541,1719214283478,-500.0,0.0002,4]
[330261542,1719214283489,-650.66235661,0.0002,7]
[330261543,1719214283499,-500.0,0.0002,4]
[330261544,1719214283509,-500.0,0.0002,4]
[330261545,1719214283520,-663.3,0.0002,4]
[330261546,1719214283530,-500.0,0.0002,4]
[330261547,1719214283547,-500.0,0.0002,4]
[330261548,1719214283556,-5536.21,0.0002,4]
[330261549,1719214283569,-500.0,0.0002,4]
[330261550,1719214283579,-2051.83,0.0002,4]
[330261551,1719214283588,-500.0,0.0002,4]
[330261552,1719214283598,-500.0,0.0002,4]
[330261553,1719214283610,-3788.32,0.0002,4]
[330261554,1719214283621,-500.0,0.0002,4]
[330261555,1719214283631,-500.0,0.0002,4]
[330261556,1719214283641,-334.19,0.0002,4]
[330261557,1719214283652,-500.0,0.0002,4]
[330261558,1719214283661,-500.0,0.0002,4]
[330261559,1719214283670,-738.9,0.0002,4]
[330261560,1719214283679,-635.92,0.0002,4]
[330261561,1719214283689,-500.0,0.0002,4]
[330261562,1719214283700,-500.0,0.0002,4]
[330261563,1719214283710,-500.0,0.0002,4]
[330261564,1719214283720,-2983.25,0.0002,4]
[330261565,1719214283730,-946.91,0.0002,4]
[330261566,1719214283740,-151.0,0.0002,2]
[330261567,1719214283750,-3622.73,0.0002,4]
[330261568,1719214283760,-500.0,0.0002,4]
[330261569,1719214283770,-151.0,0.0002,2]
[330261570,1719214283780,-163.43,0.0002,4]
[330261571,1719214283793,-189.255131,0.0002,2]
[330261572,1719214283802,-500.0,0.0002,4]
[330261573,1719214283812,-189.255131,0.0002,2]
[330261574,1719214283821,-2191.05603,0.0002001,2]
[330261575,1719214283832,-200.92410274,0.00020058,2]
[330261576,1719214283842,-1101.06638596,0.0002007,2]
[330261577,1719214283852,-600.0,0.0002007,2]
[330261578,1719214283862,-600.0,0.0002007,2]
[330261579,1719214283871,-191.04,0.00020176,2]
[330261580,1719214283882,-318.18194755,0.00020218,2]
[330261581,1719214283891,-516.42631496,0.00020218,2]
[330261582,1719214283901,-1269.62890364,0.00020232,2]
[330261583,1719214283911,-155.0,0.00020232,2]
[330261584,1719214283920,-600.0,0.00020253,2]
[330261585,1719214283930,-331.79,0.00020253,2]
[330261586,1719214283940,-187.96812151,0.0002026,2]
[330261587,1719214283950,-187.96812151,0.0002026,2]
[330261588,1719214283960,-155.0167928,0.0002026,2]
[330261589,1719214283970,-475.10495739,0.0002027,2]
[330261590,1719214283980,-151.0,0.00020272,2]
[330261591,1719214283990,-273.496332,0.00020272,2]
[330261592,1719214284000,-151.0,0.00020272,2]
[330261593,1719214284010,-151.0,0.00020272,2]
[330261594,1719214284020,-317.29,0.00020273,4]
[330261595,1719214284030,-500.0,0.00020273,4]
[330261596,1719214284042,-500.0,0.00020273,4]
[330261597,1719214284052,-500.0,0.00020273,4]
[330261598,1719214284061,-500.0,0.00020273,4]
[330261599,1719214284082,-562.52479077,0.00020273,4]
[330261600,1719214284098,-500.0,0.00020273,4]
[330261601,1719214284113,-500.0,0.00020273,4]
[330261602,1719214284126,-500.0,0.00020273,4]
[330261603,1719214284140,-500.0,0.00020273,4]
[330261604,1719214284155,-500.0,0.00020273,4]
[330261605,1719214284170,-500.0,0.00020273,4]
[330261606,1719214284186,-500.0,0.00020273,4]
[330261607,1719214284203,-500.0,0.00020273,4]
[330261608,1719214284217,-500.0,0.00020273,4]
[330261609,1719214284234,-500.0,0.00020273,4]
[330261610,1719214284250,-500.0,0.00020273,4]
[330261611,1719214284266,-500.0,0.00020273,4]
[330261612,1719214284279,-500.0,0.00020273,4]
[330261613,1719214284293,-500.0,0.00020273,4]
[330261614,1719214284306,-500.0,0.00020273,4]
[330261615,1719214284320,-500.0,0.00020273,4]
[330261616,1719214284335,-500.0,0.00020273,4]
[330261617,1719214284350,-500.0,0.00020273,4]
[330261618,1719214284365,-500.0,0.00020273,4]
[330261619,1719214284380,-500.0,0.00020273,4]
[330261620,1719214284392,-500.0,0.00020273,4]
[330261621,1719214284403,-500.0,0.00020273,4]
[330261622,1719214284416,-500.0,0.00020273,4]
[330261623,1719214284430,-500.0,0.00020273,4]
[330261624,1719214284444,-500.0,0.00020273,4]
[330261625,1719214284458,-500.0,0.00020273,4]
[330261626,1719214284472,-390.23617947,0.00020273,4]
[330261627,1719214284487,-500.0,0.00020273,4]
[330261628,1719214284502,-500.0,0.00020273,4]
[330261629,1719214284517,-500.0,0.00020273,4]
[330261630,1719214284534,-500.0,0.00020273,4]
[330261631,1719214284548,-500.0,0.00020273,4]
[330261632,1719214284561,-500.0,0.00020273,4]
[330261633,1719214284575,-500.0,0.00020273,4]
[330261634,1719214284590,-500.0,0.00020273,4]
[330261635,1719214284601,-500.0,0.00020273,4]
[330261636,1719214284620,-500.0,0.00020273,4]
[330261637,1719214284633,-500.0,0.00020273,4]
[330261638,1719214284645,-500.0,0.00020273,4]
[330261639,1719214284659,-500.0,0.00020273,4]
[330261640,1719214284671,-500.0,0.00020273,4]
[330261641,1719214284686,-500.0,0.00020273,4]
[330261642,1719214284702,-500.0,0.00020273,4]
[330261643,1719214284715,-500.0,0.00020273,4]
[330261644,1719214284728,-500.0,0.00020273,4]
[330261645,1719214284743,-500.0,0.00020273,4]
[330261646,1719214284756,-500.0,0.00020273,4]
[330261647,1719214284770,-500.0,0.00020273,4]
[330261648,1719214284783,-500.0,0.00020273,4]
[330261649,1719214284796,-500.0,0.00020273,4]
[330261650,1719214284808,-331.48,0.00020273,4]
[330261651,1719214284822,-500.0,0.00020273,4]
[330261652,1719214284835,-500.0,0.00020273,4]
[330261653,1719214284848,-500.0,0.00020273,4]
[330261654,1719214284862,-500.0,0.00020273,4]
[330261655,1719214284874,-151.63,0.00020273,4]
[330261656,1719214284887,-500.0,0.00020273,4]
[330261657,1719214284900,-500.0,0.00020273,4]
[330261658,1719214284913,-500.0,0.00020273,4]
[330261659,1719214284925,-500.0,0.00020273,4]
[330261660,1719214284938,-500.0,0.00020273,4]
[330261661,1719214284950,-500.0,0.00020273,4]
[330261662,1719214284962,-582.61,0.00020273,4]
[330261663,1719214284974,-500.0,0.00020273,4]
[330261664,1719214284986,-500.0,0.00020273,4]
[330261665,1719214284998,-500.0,0.00020273,2]
[330261666,1719214285010,-500.0,0.00020273,4]
[330261667,1719214285022,-500.0,0.00020273,4]
[330261668,1719214285033,-500.0,0.00020273,4]
[330261669,1719214285045,-500.0,0.00020273,4]
[330261670,1719214285057,-638.22,0.00020273,4]
[330261671,1719214285069,-500.0,0.00020273,4]
[330261672,1719214285081,-500.0,0.00020273,4]
[330261673,1719214285093,-500.0,0.00020273,4]
[330261674,1719214285104,-222.44164695,0.00020273,4]
[330261675,1719214285117,-626.88,0.00020273,4]
[330261676,1719214285128,-500.0,0.00020273,4]
[330261677,1719214285141,-500.0,0.00020273,4]
[330261678,1719214285153,-500.0,0.00020273,4]
[330261679,1719214285165,-500.0,0.00020273,4]
[330261680,1719214285177,-500.0,0.00020273,4]
[330261681,1719214285189,-500.0,0.00020273,4]
[330261682,1719214285202,-500.0,0.00020273,4]
[330261683,1719214285214,-500.0,0.00020273,4]
[330261684,1719214285225,-500.0,0.00020273,4]
[330261685,1719214285238,-500.0,0.00020273,4]
[330261686,1719214285249,-500.0,0.00020273,4]
[330261687,1719214285261,-414.76,0.00020273,4]
[330261688,1719214285274,-500.0,0.00020273,4]
[330261689,1719214285287,-500.0,0.00020273,4]
[330261690,1719214285300,-500.0,0.00020273,4]
[330261691,1719214285313,-500.0,0.00020273,4]
[330261692,1719214285325,-500.0,0.00020273,4]
[330261693,1719214285338,-500.0,0.00020273,4]
[330261694,1719214285350,-500.0,0.00020273,4]
[330261695,1719214285363,-525.28797451,0.00020273,4]
[330261696,1719214285375,-500.0,0.00020273,4]
[330261697,1719214285389,-500.0,0.00020273,4]
[330261698,1719214285401,-500.0,0.00020273,4]
[330261699,1719214285414,-500.0,0.00020273,4]
[330261700,1719214285427,-500.0,0.00020273,4]
[330261701,1719214285439,-500.0,0.00020273,4]
[330261702,1719214285452,-500.0,0.00020273,4]
[330261703,1719214285464,-500.0,0.00020273,4]
[330261704,1719214285476,-500.0,0.00020273,4]
[330261705,1719214285488,-500.0,0.00020273,4]
[330261706,1719214285500,-500.0,0.00020273,4]
[330261707,1719214285512,-500.0,0.00020273,4]
[330261708,1719214285524,-500.0,0.00020273,4]
[330261709,1719214285537,-500.0,0.00020273,4]
[330261710,1719214285548,-500.0,0.00020273,4]
[330261711,1719214285560,-500.0,0.00020273,4]
[330261712,1719214285571,-500.0,0.00020273,4]
[330261713,1719214285583,-500.0,0.00020273,4]
[330261714,1719214285595,-500.0,0.00020273,4]
[330261715,1719214285608,-500.0,0.00020273,4]
[330261716,1719214285621,-541.4,0.00020273,4]
[330261717,1719214285636,-500.0,0.00020273,4]
[330261718,1719214285648,-170.43,0.00020273,4]
[330261719,1719214285663,-500.0,0.00020273,4]
[330261720,1719214285676,-500.0,0.00020273,4]
[330261721,1719214285689,-500.0,0.00020273,4]
[330261722,1719214285701,-500.0,0.00020273,4]
[330261723,1719214285715,-500.0,0.00020273,4]
[330261724,1719214285727,-500.0,0.00020273,4]
[330261725,1719214285738,-500.0,0.00020273,4]
[330261726,1719214285751,-500.0,0.00020273,4]
[330261727,1719214285762,-500.0,0.00020273,4]
[330261728,1719214285774,-500.0,0.00020273,4]
[330261729,1719214285789,-500.0,0.00020273,4]
[330261730,1719214285800,-500.0,0.00020273,4]
[330261731,1719214285811,-500.0,0.00020273,4]
[330261732,1719214285823,-500.0,0.00020273,4]
[330261733,1719214285835,-500.0,0.00020273,4]
[330261734,1719214285847,-500.0,0.00020273,4]
[330261735,1719214285859,-500.0,0.00020273,4]
[330261736,1719214285871,-500.0,0.00020273,4]
[330261737,1719214285883,-500.0,0.00020273,4]
[330261738,1719214285895,-500.0,0.00020273,4]
[330261739,1719214285907,-500.0,0.00020273,4]
[330261740,1719214285919,-500.0,0.00020273,4]
[330261741,1719214285931,-500.0,0.00020273,4]
[330261742,1719214285943,-500.36,0.00020273,4]
[330261743,1719214285955,-500.0,0.00020273,4]
[330261744,1719214285967,-500.0,0.00020273,4]
[330261745,1719214285979,-500.0,0.00020273,4]
[330261746,1719214285990,-500.0,0.00020273,4]
[330261747,1719214286003,-500.0,0.00020273,4]
[330261748,1719214286014,-500.0,0.00020273,4]
[330261749,1719214286026,-500.0,0.00020273,4]
[330261750,1719214286041,-500.0,0.00020273,4]
[330261751,1719214286053,-500.0,0.00020273,4]
[330261752,1719214286065,-589.6221564,0.00020273,4]
[330261753,1719214286078,-500.0,0.00020273,4]
[330261754,1719214286091,-500.0,0.00020273,4]
[330261755,1719214286104,-500.0,0.00020273,4]
[330261756,1719214286116,-500.0,0.00020273,4]
[330261757,1719214286128,-500.0,0.00020273,4]
[330261758,1719214286141,-500.0,0.00020273,4]
[330261759,1719214286153,-500.0,0.00020273,4]
[330261760,1719214286165,-500.0,0.00020273,4]
[330261761,1719214286177,-500.0,0.00020273,4]
[330261762,1719214286189,-500.0,0.00020273,4]
[330261763,1719214286201,-638.81,0.00020273,4]
[330261764,1719214286214,-360.05270178,0.00020273,4]
[330261765,1719214286226,-500.0,0.00020273,4]
[330261766,1719214286237,-500.0,0.00020273,4]
[330261767,1719214286249,-500.0,0.00020273,4]
[330261768,1719214286262,-500.0,0.00020273,4]
[330261769,1719214286274,-330.2,0.00020273,4]
[330261770,1719214286288,-500.0,0.00020273,4]
[330261771,1719214286300,-500.0,0.00020273,4]
[330261772,1719214286312,-500.0,0.00020273,4]
[330261773,1719214286324,-500.0,0.00020273,4]
[330261774,1719214286335,-500.0,0.00020273,4]
[330261775,1719214286347,-391.97,0.00020273,4]
[330261776,1719214286360,-541.63913814,0.00020273,4]
[330261777,1719214286371,-500.0,0.00020273,4]
[330261778,1719214286384,-500.0,0.00020273,4]